fUST/lending_fUST_20250828
["ID","MTS","AMOUNT","RATE_DAILY","PERIOD"]
[381812522,1756357840795,-480.51336113,0.00020114,2]
[381812523,1756357840806,-480.0,0.00020114,2]
[381812524,1756357840816,-480.0,0.00020114,2]
[381812525,1756357840825,-795.22,0.00020114,2]
[381812526,1756357840835,-500.0,0.00020114,2]
[381812527,1756357840845,-480.0,0.00020114,2]
[381812528,1756357840854,-480.0,0.00020114,2]
[381812529,1756357840864,-481.81112402,0.00020114,2]
[381812530,1756357840876,-480.0,0.00020114,2]
[381812531,1756357840886,-480.0,0.00020114,2]
[381812532,1756357840895,-480.0,0.00020114,2]
[381812533,1756357840905,-480.0,0.00020114,2]
[381812534,1756357840916,-480.0,0.00020114,2]
[381812535,1756357840926,-480.0,0.00020114,2]
[381812536,1756357840936,-235.896126,0.00020114,2]
[381812537,1756357840946,-480.0,0.00020114,2]
[381812538,1756357840956,-480.0,0.00020114,2]
[381812539,1756357840966,-480.0,0.00020114,2]
[381812540,1756357840977,-480.0,0.00020114,2]
[381812541,1756357840990,-697.35,0.00020114,2]
[381812542,1756357841000,-480.0,0.00020114,2]
[381812543,1756357841010,-480.0,0.00020114,2]
[381812544,1756357841021,-480.0,0.00020114,2]
[381812545,1756357841031,-480.0,0.00020114,2]
[381812546,1756357841040,-483.49815986,0.00020114,2]
[381812547,1756357841052,-480.0,0.00020114,2]
[381812548,1756357841062,-480.0,0.00020114,2]
[381812549,1756357841073,-480.0,0.00020114,2]
[381812550,1756357841083,-480.0,0.00020114,2]
[381812551,1756357841093,-480.0,0.00020114,2]
[381812552,1756357841103,-482.44732218,0.00020114,2]
[381812553,1756357841112,-480.0,0.00020114,2]
[381812554,1756357841123,-480.0,0.00020114,2]
[381812555,1756357841133,-480.0,0.00020114,2]
[381812556,1756357841144,-480.0,0.00020114,2]
[381812557,1756357841154,-480.0,0.00020114,2]
[381812558,1756357841164,-480.0,0.00020114,2]
[381812559,1756357841174,-480.0,0.00020114,2]
[381812560,1756357841185,-480.0,0.00020114,2]
[381812561,1756357841197,-480.0,0.00020114,2]
[381812562,1756357841207,-480.0,0.00020114,2]
[381812563,1756357841217,-480.0,0.00020114,2]
[381812564,1756357841228,-480.0,0.00020114,2]
[381812565,1756357841238,-480.0,0.00020114,2]
[381812566,1756357841248,-480.0,0.00020114,2]
[381812567,1756357841258,-480.0,0.00020114,2]
[381812568,1756357841267,-480.0,0.00020114,2]
[381812569,1756357841278,-480.0,0.00020114,2]
[381812570,1756357841288,-529.5,0.00020114,2]
[381812571,1756357841298,-480.0,0.00020114,2]
[381812572,1756357841308,-480.0,0.00020114,2]
[381812573,1756357841319,-480.0,0.00020114,2]
[381812574,1756357841329,-480.0,0.00020114,2]
[381812575,1756357841339,-480.0,0.00020114,2]
[381812576,1756357841349,-480.0,0.00020114,2]
[381812577,1756357841360,-480.0,0.00020114,2]
[381812578,1756357841370,-480.0,0.00020114,2]
[381812579,1756357841380,-480.0,0.00020114,2]
[381812580,1756357841390,-480.0,0.00020114,2]
[381812581,1756357841400,-296.55467155,0.00020114,2]
[381812582,1756357841411,-481.38600041,0.00020114,2]
[381812583,1756357841421,-480.0,0.00020114,2]
[381812584,1756357841432,-480.0,0.00020114,2]
[381812585,1756357841442,-500.16,0.00020114,2]
[381812586,1756357841453,-480.0,0.00020114,2]
[381812587,1756357841464,-480.0,0.00020114,2]
[381812588,1756357841474,-480.0,0.00020114,2]
[381812589,1756357841485,-597.76,0.00020114,2]
[381812590,1756357841495,-481.57175427,0.00020114,2]
[381812591,1756357841505,-480.0,0.00020114,2]
[381812592,1756357841516,-545.7,0.00020114,2]
[381812593,1756357841526,-390.43397345,0.00020114,2]
[381812594,1756357841536,-899.98,0.00020114,2]
[381812595,1756357841547,-480.0,0.00020114,2]
[381812596,1756357841557,-480.0,0.00020114,2]
[381812597,1756357841567,-492.04,0.00020114,2]
[381812598,1756357841577,-480.0,0.00020114,2]
[381812599,1756357841587,-480.0,0.00020114,2]
[381812600,1756357841597,-573.17,0.00020114,2]
[381812601,1756357841607,-480.0,0.00020114,2]
[381812602,1756357841617,-480.0,0.00020114,2]
[381812603,1756357841628,-480.0,0.00020114,2]
[381812604,1756357841638,-480.0,0.00020114,2]
[381812605,1756357841649,-480.0,0.00020114,2]
[381812606,1756357841660,-480.0,0.00020114,2]
[381812607,1756357841671,-480.0,0.00020114,2]
[381812608,1756357841681,-480.0,0.00020114,2]
[381812609,1756357841691,-480.0,0.00020114,2]
[381812610,1756357841701,-552.79249193,0.00020114,2]
[381812611,1756357841711,-480.0,0.00020114,2]
[381812612,1756357841722,-480.0,0.00020114,2]
[381812613,1756357841732,-480.0,0.00020114,2]
[381812614,1756357841743,-480.0,0.00020114,2]
[381812615,1756357841753,-500.0,0.00020114,2]
[381812616,1756357841764,-500.0,0.00020114,2]
[381812617,1756357841991,-480.0,0.00020114,2]
[381812618,1756357842001,-480.0,0.00020114,2]
[381812619,1756357842011,-480.0,0.00020114,2]
[381812620,1756357842020,-480.0,0.00020114,2]
[381812621,1756357842030,-480.0,0.00020114,2]
[381812622,1756357842039,-480.0,0.00020114,2]
[381812623,1756357842049,-554.12,0.00020114,2]
[381812624,1756357842059,-480.0,0.00020114,2]
[381812625,1756357842069,-480.0,0.00020114,2]
[381812626,1756357842079,-480.0,0.00020114,2]
[381812627,1756357842089,-480.0,0.00020114,2]
[381812628,1756357842098,-534.5,0.00020114,2]
[381812629,1756357842107,-480.0,0.00020114,2]
[381812630,1756357842117,-480.0,0.00020114,2]
[381812631,1756357842127,-480.0,0.00020114,2]
[381812632,1756357842136,-515.25,0.00020114,2]
[381812633,1756357842146,-522.11,0.00020114,2]
[381812634,1756357842155,-480.0,0.00020114,2]
[381812635,1756357842165,-480.0,0.00020114,2]
[381812636,1756357842174,-480.0,0.00020114,2]
[381812637,1756357842184,-480.0,0.00020114,2]
[381812638,1756357842196,-510.37,0.00020114,2]
[381812639,1756357842205,-480.0,0.00020114,2]
[381812640,1756357842214,-480.0,0.00020114,2]
[381812641,1756357842223,-480.0,0.00020114,2]
[381812642,1756357842233,-480.0,0.00020114,2]
[381812643,1756357842242,-480.0,0.00020114,2]
[381812644,1756357842251,-481.13971027,0.00020114,2]
[381812645,1756357842261,-480.0,0.00020114,2]
[381812646,1756357842270,-480.0,0.00020114,2]
[381812647,1756357842280,-624.42,0.00020114,2]
[381812648,1756357842289,-389.65014038,0.00020114,2]
[381812649,1756357842299,-480.0,0.00020114,2]
[381812650,1756357842308,-480.0,0.00020114,2]
[381812651,1756357842318,-480.0,0.00020114,2]
[381812652,1756357842327,-480.0,0.00020114,2]
[381812653,1756357842336,-818.02,0.00020114,2]
[381812654,1756357842346,-480.0,0.00020114,2]
[381812655,1756357842355,-480.0,0.00020114,2]
[381812656,1756357842365,-498.97,0.00020114,2]
[381812657,1756357842376,-480.0,0.00020114,2]
[381812658,1756357842386,-480.0,0.00020114,2]
[381812659,1756357842395,-480.0,0.00020114,2]
[381812660,1756357842405,-786.47,0.00020114,2]
[381812661,1756357842414,-7417.32,0.00020114,2]
[381812662,1756357842423,-1601.06,0.00020114,2]
[381812663,1756357842433,-6114.74,0.00020114,2]
[381812664,1756357842442,-150.0,0.00020115,2]
[381812665,1756357842451,-500.0,0.00020115,2]
[381812666,1756357842461,-500.0,0.00020115,2]
[381812667,1756357842470,-500.0,0.00020115,2]
[381812668,1756357842480,-804.83,0.00020116,2]
[381812669,1756357842489,-826.54,0.00020116,2]
[381812670,1756357842498,-1640.49,0.00020116,2]
[381812671,1756357842508,-1700.67,0.00020116,2]
[381812672,1756357842517,-480.0,0.00020116,2]
[381812673,1756357842527,-731.13,0.00020116,2]
[381812674,1756357842536,-500.0,0.00020158,2]
[381812675,1756357842546,-2715.12328229,0.00020166,2]
[381812676,1756357842555,-212.63853515,0.00020173,2]
[381812677,1756357842565,-351.0219958,0.00020173,2]
[381812678,1756357842575,-500.0,0.00020173,2]
[381812679,1756357842584,-500.0,0.00020173,2]
[381812680,1756357842594,-500.0,0.00020173,2]
[381812681,1756357842603,-286.39146236,0.00020173,2]
[381812682,1756357842612,-500.0,0.00020173,2]
[381812683,1756357842623,-368.95975832,0.00020173,2]
[381812684,1756357842632,-500.0,0.00020173,2]
[381812685,1756357842642,-500.0,0.00020173,2]
[381812686,1756357842651,-500.0,0.00020173,2]
[381812687,1756357842661,-367.2886646,0.00020173,2]
[381812688,1756357842670,-500.0,0.00020173,2]
[381812689,1756357842680,-500.0,0.00020173,2]
[381812690,1756357842690,-502.80728682,0.00020173,2]
[381812691,1756357842699,-500.0,0.00020173,2]
[381812692,1756357842708,-481.18494462,0.00020184,2]
[381812693,1756357842718,-480.0,0.00020184,2]
[381812694,1756357842727,-218.19,0.00020185,2]
[381812695,1756357842737,-480.0,0.00020188,2]
[381812696,1756357842748,-2169.42,0.00020188,2]
[381812697,1756357842757,-639.46,0.00020188,2]
[381812698,1756357842767,-480.0,0.00020188,2]
[381812699,1756357842776,-1495.6,0.00020188,2]
[381812700,1756357842786,-515.47,0.00020188,2]
[381812701,1756357842795,-173.66815184,0.0002019,2]
[381812702,1756357842804,-2815.58284374,0.00020221,2]
[381812703,1756357842814,-2370.95184351,0.00020238,2]
[381812704,1756357842823,-500.0,0.00020273,2]
[381812705,1756357842832,-355.80338343,0.00020273,2]
[381812706,1756357842842,-246.17059374,0.00020273,2]
[381812707,1756357842851,-500.0,0.00020273,2]
[381812708,1756357842860,-500.74653289,0.00020273,2]
[381812709,1756357842870,-500.0,0.00020273,2]
[381812710,1756357842879,-500.0,0.00020273,2]
[381812711,1756357842888,-500.0,0.00020273,2]
[381812712,1756357842898,-500.0,0.00020273,2]
[381812713,1756357842907,-340.120175,0.00020273,2]
[381812714,1756357842916,-500.0,0.00020273,2]
[381812716,1756357842926,-160.40224948,0.00020273,2]
[381812717,1756357842935,-500.0,0.00020273,2]
[381812719,1756357842945,-500.0,0.00020273,2]
[381812721,1756357842954,-500.0,0.00020273,2]
[381812722,1756357842964,-500.0,0.00020273,2]
[381812723,1756357842973,-500.0,0.00020273,2]
[381812724,1756357842986,-500.0,0.00020273,2]
[381812725,1756357842996,-500.0,0.00020273,2]
[381812726,1756357843005,-2919.75940895,0.00020276,2]
[381812728,1756357843016,-480.0,0.00020284,2]
[381812729,1756357843026,-480.0,0.00020284,2]
[381812730,1756357843036,-480.0,0.00020284,2]
[381812731,1756357843045,-480.0,0.00020284,2]
[381812732,1756357843056,-471.13294931,0.00020284,2]
[381812733,1756357843066,-786.65,0.00020284,2]
[381812735,1756357843075,-713.73,0.00020284,2]
[381812737,1756357843085,-480.0,0.00020284,2]
[381812739,1756357843094,-480.0,0.00020284,2]
[381812741,1756357843103,-480.0,0.00020284,2]
[381812742,1756357843113,-480.0,0.00020284,2]
[381812743,1756357843123,-480.0,0.00020284,2]
[381812744,1756357843132,-480.0,0.00020284,2]
[381812745,1756357843142,-480.0,0.00020284,2]
[381812746,1756357843152,-480.79,0.00020284,2]
[381812747,1756357843161,-480.45632782,0.00020284,2]
[381812748,1756357843171,-480.0,0.00020284,2]
[381812749,1756357843181,-480.0,0.00020284,2]
[381812750,1756357843190,-480.0,0.00020284,2]
[381812751,1756357843199,-480.0,0.00020284,2]
[381812752,1756357843208,-480.0,0.00020284,2]
[381812753,1756357843218,-648.17,0.00020284,2]
[381812754,1756357843228,-480.0,0.00020284,2]
[381812755,1756357843237,-480.0,0.00020284,2]
[381812756,1756357843247,-480.0,0.00020284,2]
[381812757,1756357843256,-480.0,0.00020284,2]
[381812758,1756357843266,-533.59,0.00020284,2]
[381812759,1756357843276,-480.0,0.00020284,2]
[381812760,1756357843285,-480.0,0.00020284,2]
[381812761,1756357843295,-481.53684633,0.00020284,2]
[381812762,1756357843303,-480.0,0.00020284,2]
[381812763,1756357843313,-655.42,0.00020284,2]
[381812764,1756357843322,-480.0,0.00020284,2]
[381812765,1756357843332,-480.0,0.00020284,2]
[381812766,1756357843341,-480.0,0.00020284,2]
[381812767,1756357843351,-480.0,0.00020284,2]
[381812768,1756357843361,-944.76,0.00020284,2]
[381812769,1756357843370,-480.0,0.00020284,2]
[381812770,1756357843379,-480.0,0.00020284,2]
[381812771,1756357843388,-480.0,0.00020284,2]
[381812772,1756357843398,-480.0,0.00020284,2]
[381812773,1756357843407,-480.0,0.00020284,2]
[381812775,1756357843416,-1375.55,0.00020284,2]
[381812776,1756357843426,-537.18,0.00020284,2]
[381812777,1756357843436,-504.38,0.00020284,2]
[381812778,1756357843445,-480.0,0.00020284,2]
[381812779,1756357843455,-790.41,0.00020284,2]
[381812780,1756357843464,-510.07,0.00020284,2]
[381812781,1756357843474,-480.0,0.00020284,2]
[381812782,1756357843484,-480.0,0.00020284,2]
[381812783,1756357843493,-480.0,0.00020284,2]
[381812784,1756357843503,-480.0,0.00020284,2]
[381812785,1756357843512,-481.28333104,0.00020284,2]
[381812786,1756357843522,-397.0868977,0.00020284,2]
[381812788,1756357843532,-498.02,0.00020284,2]
[381812790,1756357843542,-541.05,0.00020284,2]
[381812791,1756357843552,-487.28,0.00020284,2]
[381812792,1756357843561,-480.0,0.00020284,2]
[381812793,1756357843570,-480.0,0.00020284,2]
[381812795,1756357843582,-480.0,0.00020284,2]
[381812797,1756357843592,-480.0,0.00020284,2]
[381812798,1756357843602,-480.0,0.00020284,2]
[381812799,1756357843611,-484.69873127,0.00020284,2]
[381812800,1756357843622,-500.0,0.00020284,2]
[381812801,1756357843632,-480.0,0.00020284,2]
[381812802,1756357843641,-633.32,0.00020284,2]
[381812803,1756357843650,-657.6,0.00020284,2]
[381812804,1756357843660,-480.0,0.00020284,2]
[381812805,1756357843669,-644.12,0.00020284,2]
[381812806,1756357843679,-480.0,0.00020284,2]
[381812807,1756357843689,-480.0,0.00020284,2]
[381812808,1756357843698,-560.98,0.00020284,2]
[381812809,1756357843707,-480.0,0.00020284,2]
[381812810,1756357843717,-574.0,0.00020284,2]
[381812811,1756357843726,-480.0,0.00020284,2]
[381812812,1756357843736,-480.0,0.00020284,2]
[381812813,1756357843745,-502.35,0.00020284,2]
[381812814,1756357843755,-480.0,0.00020284,2]
[381812815,1756357843764,-382.11898513,0.00020284,2]
[381812816,1756357843773,-480.0,0.00020284,2]
[381812817,1756357843783,-480.0,0.00020284,2]
[381812818,1756357843792,-480.0,0.00020284,2]
[381812819,1756357843802,-480.0,0.00020284,2]
[381812820,1756357843811,-480.0,0.00020284,2]
[381812821,1756357843820,-480.0,0.00020284,2]
[381812822,1756357843830,-1511.51,0.00020284,2]
[381812823,1756357843840,-480.0,0.00020284,2]
[381812824,1756357843849,-480.0,0.00020284,2]
[381812825,1756357843858,-497.56,0.00020284,2]
[381812826,1756357843868,-957.08,0.00020284,2]
[381812827,1756357843878,-1082.64,0.00020284,2]
[381812828,1756357843887,-480.0,0.00020284,2]
[381812829,1756357843896,-480.0,0.00020284,2]
[381812830,1756357843906,-527.16,0.00020284,2]
[381812831,1756357843916,-480.0,0.00020284,2]
[381812832,1756357843925,-480.0,0.00020284,2]
[381812833,1756357843935,-480.0,0.00020284,2]
[381812834,1756357843944,-480.0,0.00020284,2]
[381812835,1756357843954,-480.0,0.00020284,2]
[381812836,1756357843965,-361.80949767,0.00020284,2]
[381812837,1756357843975,-480.0,0.00020284,2]
[381812838,1756357843988,-480.0,0.00020284,2]
[381812839,1756357843998,-241.21138148,0.00020284,2]
[381812840,1756357844007,-865.85,0.00020284,2]
[381812841,1756357844016,-480.0,0.00020284,2]
[381812842,1756357844027,-480.0,0.00020284,2]
[381812843,1756357844036,-480.0,0.00020284,2]
[381812844,1756357844044,-480.0,0.00020284,2]
[381812845,1756357844054,-564.92,0.00020284,2]
[381812846,1756357844063,-480.0,0.00020284,2]
[381812847,1756357844072,-480.0,0.00020284,2]
[381812848,1756357844082,-496.05,0.00020284,2]
[381812849,1756357844091,-382.51777667,0.00020284,2]
[381812850,1756357844100,-480.0,0.00020284,2]
[381812851,1756357844109,-480.0,0.00020284,2]
[381812852,1756357844119,-959.96,0.00020284,2]
[381812853,1756357844128,-480.0,0.00020284,2]
[381812854,1756357844138,-480.0,0.00020284,2]
[381812855,1756357844147,-560.89,0.00020284,2]
[381812856,1756357844156,-480.0,0.00020284,2]
[381812857,1756357844165,-480.0,0.00020284,2]
[381812858,1756357844175,-480.0,0.00020284,2]
[381812859,1756357844184,-516.82,0.00020284,2]
[381812860,1756357844194,-533.53,0.00020284,2]
[381812861,1756357844203,-480.0,0.00020284,2]
[381812862,1756357844212,-480.0,0.00020284,2]
[381812863,1756357844222,-659.5,0.00020284,2]
[381812864,1756357844231,-480.0,0.00020284,2]
[381812865,1756357844240,-480.0,0.00020284,2]
[381812866,1756357844250,-480.0,0.00020284,2]
[381812867,1756357844260,-480.0,0.00020284,2]
[381812868,1756357844269,-480.0,0.00020284,2]
[381812869,1756357844329,-480.83,0.00020284,2]
[381812870,1756357844338,-551.27,0.00020284,2]
[381812871,1756357844347,-983.06,0.00020284,2]
[381812872,1756357844357,-480.0,0.00020284,2]
[381812873,1756357844367,-480.0,0.00020284,2]
[381812874,1756357844377,-750.24,0.00020284,2]
[381812875,1756357844386,-480.0,0.00020284,2]
[381812876,1756357844395,-519.97,0.00020284,2]
[381812877,1756357844405,-480.0,0.00020284,2]
[381812878,1756357844414,-2407.13,0.00020284,2]
[381812879,1756357844423,-480.0,0.00020284,2]
[381812880,1756357844432,-480.0,0.00020284,2]
[381812881,1756357844441,-463.10880488,0.00020284,2]
[381812882,1756357844450,-1445.41,0.00020284,2]
[381812883,1756357844459,-480.0,0.00020284,2]
[381812884,1756357844469,-1263.67,0.00020284,2]
[381812885,1756357844478,-922.14,0.00020284,2]
[381812886,1756357844487,-480.0,0.00020284,2]
[381812887,1756357844496,-3847.08,0.00020284,2]
[381812888,1756357844506,-480.0,0.00020284,2]
[381812889,1756357844515,-784.19,0.00020284,2]
[381812890,1756357844524,-480.0,0.00020284,2]
[381812891,1756357844533,-1198.44,0.00020284,2]
[381812892,1756357844543,-480.0,0.00020284,2]
[381812893,1756357844552,-682.49,0.00020284,2]
[381812894,1756357844561,-480.0,0.00020284,2]
[381812895,1756357844570,-1129.71,0.00020284,2]
[381812896,1756357844579,-480.0,0.00020284,2]
[381812897,1756357844589,-480.0,0.00020284,2]
[381812898,1756357844598,-1134.3,0.00020284,2]
[381812899,1756357844607,-480.0,0.00020284,2]
[381812900,1756357844616,-480.0,0.00020284,2]
[381812901,1756357844626,-490.66,0.00020284,2]
[381812902,1756357844636,-519.51,0.00020284,2]
[381812903,1756357844645,-658.74,0.00020284,2]
[381812904,1756357844655,-481.49006348,0.00020284,2]
[381812905,1756357844664,-480.0,0.00020284,2]
[381812906,1756357844674,-480.0,0.00020284,2]
[381812907,1756357844684,-739.51,0.00020284,2]
[381812908,1756357844694,-480.0,0.00020284,2]
[381812909,1756357844704,-480.0,0.00020284,2]
[381812910,1756357844713,-1627.79,0.00020284,2]
[381812911,1756357844722,-525.76,0.00020284,2]
[381812912,1756357844731,-480.0,0.00020284,2]
[381812913,1756357844740,-480.0,0.00020284,2]
[381812914,1756357844749,-767.73,0.00020284,2]
[381812915,1756357844758,-480.0,0.00020284,2]
[381812916,1756357844768,-488.76501945,0.00020284,2]
[381812917,1756357844777,-480.0,0.00020284,2]
[381812918,1756357844786,-1503.05,0.00020284,2]
[381812919,1756357844795,-1532.08,0.00020284,2]
[381812920,1756357844804,-824.33,0.00020284,2]
[381812921,1756357844813,-489.36,0.00020284,2]
[381812922,1756357844822,-480.0,0.00020284,2]
[381812923,1756357844831,-2557.76,0.00020284,2]
[381812924,1756357844841,-480.0,0.00020284,2]
[381812925,1756357844850,-480.0,0.00020284,2]
[381812926,1756357844859,-586.84,0.00020284,2]
[381812927,1756357844869,-3503.35,0.00020284,2]
[381812928,1756357844878,-480.0,0.00020284,2]
[381812929,1756357844887,-480.0,0.00020284,2]
[381812930,1756357844896,-480.0,0.00020284,2]
[381812931,1756357844905,-480.0,0.00020284,2]
[381812932,1756357844914,-349.40172221,0.00020284,2]
[381812933,1756357844923,-503.75,0.00020284,2]
[381812934,1756357844932,-480.0,0.00020284,2]
[381812935,1756357844941,-761.51,0.00020284,2]
[381812936,1756357844950,-480.0,0.00020284,2]
[381812937,1756357844959,-704.5,0.00020284,2]
[381812938,1756357844968,-1276.85,0.00020284,2]
[381812939,1756357844979,-480.0,0.00020284,2]
[381812940,1756357844991,-723.72,0.00020284,2]
[381812941,1756357845004,-480.0,0.00020284,2]
[381812942,1756357845014,-480.0,0.00020284,2]
[381812943,1756357845023,-480.0,0.00020284,2]
[381812944,1756357845034,-480.0,0.00020284,2]
[381812945,1756357845043,-1002.35,0.00020284,2]
[381812946,1756357845053,-1166.04,0.00020284,2]
[381812947,1756357845062,-1455.86,0.00020284,2]
[381812948,1756357845072,-480.0,0.00020284,2]
[381812949,1756357845081,-480.0,0.00020284,2]
[381812950,1756357845091,-480.0,0.00020284,2]
[381812951,1756357845100,-819.21,0.00020284,2]
[381812952,1756357845109,-480.0,0.00020284,2]
[381812953,1756357845118,-480.0,0.00020284,2]
[381812954,1756357845128,-2444.59,0.00020284,2]
[381812955,1756357845138,-766.24,0.00020284,2]
[381812956,1756357845148,-480.0,0.00020284,2]
[381812957,1756357845157,-1830.55,0.00020284,2]
[381812958,1756357845167,-480.0,0.00020284,2]
[381812959,1756357845176,-735.26,0.00020284,2]
[381812960,1756357845186,-480.0,0.00020284,2]
[381812961,1756357845195,-480.0,0.00020284,2]
[381812962,1756357845204,-480.0,0.00020284,2]
[381812963,1756357845214,-480.0,0.00020284,2]
[381812964,1756357845223,-523.99,0.00020284,2]
[381812965,1756357845232,-2483.8,0.00020284,2]
[381812966,1756357845242,-480.0,0.00020284,2]
[381812967,1756357845251,-487.66,0.00020284,2]
[381812968,1756357845260,-1398.72,0.00020284,2]
[381812969,1756357845270,-480.0,0.00020284,2]
[381812970,1756357845279,-400.0,0.00020284,2]
[381812971,1756357845288,-546.78,0.00020284,2]
[381812972,1756357845297,-480.0,0.00020284,2]
[381812973,1756357845307,-480.0,0.00020284,2]
[381812974,1756357845316,-480.0,0.00020284,2]
[381812975,1756357845325,-666.93,0.00020284,2]
[381812976,1756357845334,-480.0,0.00020284,2]
[381812977,1756357845343,-480.0,0.00020284,2]
[381812978,1756357845352,-480.0,0.00020284,2]
[381812979,1756357845362,-495.39,0.00020284,2]
[381812980,1756357845371,-4058.33,0.00020284,2]
[381812981,1756357845380,-737.84,0.00020284,2]
[381812982,1756357845389,-1036.6,0.00020284,2]
[381812983,1756357845399,-480.0,0.00020284,2]
[381812984,1756357845408,-480.0,0.00020284,2]
[381812985,1756357845418,-480.0,0.00020284,2]
[381812986,1756357845427,-3488.45,0.00020284,2]
[381812987,1756357845436,-528.58,0.00020284,2]
[381812988,1756357845445,-445.555411,0.00020284,2]
[381812989,1756357845454,-480.0,0.00020284,2]
[381812990,1756357845463,-480.0,0.00020284,2]
[381812991,1756357845472,-480.0,0.00020284,2]
[381812992,1756357845482,-834.38,0.00020284,2]
[381812993,1756357845491,-480.0,0.00020284,2]
[381812994,1756357845500,-2192.53,0.00020284,2]
[381812995,1756357845510,-154.15133745,0.00020284,2]
[381812996,1756357845519,-480.0,0.00020284,2]
[381812997,1756357845528,-480.0,0.00020284,2]
[381812998,1756357845537,-480.0,0.00020284,2]
[381812999,1756357845547,-480.0,0.00020284,2]
[381813000,1756357845557,-614.2,0.00020284,2]
[381813001,1756357845566,-647.01,0.00020284,2]
[381813002,1756357845576,-480.0,0.00020284,2]
[381813003,1756357845586,-442.39724801,0.00020284,2]
[381813004,1756357845595,-603.43,0.00020284,2]
[381813005,1756357845604,-480.0,0.00020284,2]
[381813006,1756357845614,-609.37,0.00020284,2]
[381813007,1756357845623,-400.0,0.00020284,2]
[381813008,1756357845632,-480.0,0.00020284,2]
[381813009,1756357845641,-1642.89,0.00020284,2]
[381813010,1756357845650,-547.64,0.00020284,2]
[381813011,1756357845660,-545.08377483,0.00020284,2]
[381813012,1756357845669,-808.8,0.00020284,2]
[381813013,1756357845678,-926.55,0.00020284,2]
[381813014,1756357845688,-480.0,0.00020284,2]
[381813015,1756357845697,-621.31,0.00020284,2]
[381813016,1756357845706,-1672.0,0.00020284,2]
[381813017,1756357845716,-481.14720093,0.00020284,2]
[381813018,1756357845725,-1695.49,0.00020284,2]
[381813019,1756357845734,-633.59,0.00020284,2]
[381813020,1756357845743,-1149.85,0.00020284,2]
[381813021,1756357845752,-480.0,0.00020284,2]
[381813022,1756357845761,-480.0,0.00020284,2]
[381813023,1756357845770,-586.13,0.00020284,2]
[381813024,1756357845779,-616.68303998,0.00020284,2]
[381813025,1756357845789,-480.0,0.00020285,2]
[381813026,1756357845798,-480.0,0.00020285,2]
[381813027,1756357845808,-4914.21,0.00020285,2]
[381813028,1756357845817,-2549.75,0.00020285,2]
[381813029,1756357845826,-619.54,0.00020285,2]
[381813030,1756357845836,-4806.46,0.00020285,2]
[381813031,1756357845845,-637.66,0.00020285,2]
[381813032,1756357845854,-1581.21,0.00020285,2]
[381813033,1756357845863,-1167.81,0.00020287,2]
[381813034,1756357845872,-480.0,0.00020287,2]